[Event "Qatar Masters 2024"]
[Site "Doha"]
[Date "2024.12.03"]
[Round "1.21"]
[White "Zhu, Hengyi"]
[Black "Petrosyan, Manuel"]
[Result "1/2-1/2"]
[Annotator "TA"]
[ECO "B15"]
[WhiteElo "2361"]
[BlackElo "2612"]
[PlyCount "86"]
[EventDate "2024.11.24"]
[EventType "swiss"]
[EventCountry "QAT"]
[SourceTitle "playchess.com"]
[Source "ChessBase"]
[SourceQuality "1"]
[TimeControl "40/5400+30:1800+30"]

{[%evp 14,86,50,27,30,24,42,45,35,41,33,37,34,45,38,41,37,0,15,21,17,0,0,0,0,-18,-22,-17,-15,-25,-19,-7,-12,-16,-14,-21,0,0,0,0,0,0,0,0,0,0,0,0,0,0,0,0,0,0,0,0,0,0,0,0,0,0,0,-8,0,0,0,-8,-8,-8,-8,-8,-8,-8,-8]} 1. e4 {[%emt 0:00:06]} c6 {[%emt 0:02:08]} 2. d4 {[%emt 0:01:02]} d5 {[%emt 0:00:07]} 3. Nd2 {[%emt 0:00:21]} dxe4 {[%emt 0:00:29]} 4. Nxe4 {[%emt 0:00:13]} Nf6 {[%emt 0:00:06]} 5. Nxf6+ {[%emt 0:00:13]} exf6 {[%emt 0:00:06]} 6. c3 {[%emt 0:05:20]} Bd6 {[%emt 0:01:30]} 7. Bd3 {[%emt 0:00:21]} O-O {[%emt 0:00:18]} 8. Qc2 {[%emt 0:00:14]} Re8+ {[%emt 0:00:10]} 9. Ne2 {[%emt 0:00:09]} h5 {[%emt 0:00:13]} 10. O-O {[%emt 0:00:17]} h4 {[%emt 0:00:05] White is slightly better.} 11. h3 {[%emt 0:06:53]} Nd7 {[%emt 0:00:59]} 12. Be3 {[%emt 0:09:29]} Nf8 {[%emt 0:00:44]} 13. Rad1 {[%emt 0:04:26]} Be6 {[%emt 0:00:24]} 14. Rfe1 {[%emt 0:01:41]} Qd7 {[%emt 0:03:28][%cal Oe6h3]} 15. Bf4 {[%emt 0:06:10]} Rad8 {[%emt 0:06:57]} 16. Bxd6 {[%emt 0:11:34]} Qxd6 {[%emt 0:00:19]} 17. Qa4 {[%emt 0:00:08]} Bd5 {[%emt 0:25:15]} 18. c4 {[%emt 0:13:50]} Be4 {[%emt 0:07:41]} 19. Bxe4 {[%emt 0:00:25]} ({Much weaker is} 19. Qxa7 Bxd3 20. c5 (20. Rxd3 Qb4 $17) 20... Qc7 21. Rxd3 Ra8 $17) 19... Rxe4 {[%emt 0:00:06]} 20. Nc3 {[%emt 0:00:17]} ({Don't play} 20. Qxa7 Rde8 21. Kf1 Qe7 $19) 20... Rxe1+ {[%emt 0:02:23]} 21. Rxe1 {[%emt 0:00:29]} Qxd4 {[%emt 0:12:05] Hoping for ...Qc5.} 22. Rd1 {[%emt 0:00:17] The position is equal.} Qb6 {[%emt 0:00:11]} 23. Rxd8 {[%emt 0:00:12]} Qxd8 {[%emt 0:00:04]} 24. Qxa7 $11 {[%emt 0:00:09][%mdl 4096] Endgame. KQN-KQN} Qd2 {[%emt 0:00:19]} 25. Qxb7 {[%emt 0:00:56]} Qe1+ {[%emt 0:04:40]} 26. Kh2 {[%emt 0:00:02]} Qxf2 {[%emt 0:00:07]} 27. Qxc6 {[%emt 0:08:47]} Qxb2 {[%emt 0:02:46]} 28. Nd5 {[%emt 0:02:08]} Qe5+ {[%emt 0:01:46]} 29. Kh1 {[%emt 0:00:33] Active counter play!} Ng6 {[%emt 0:06:31]} 30. c5 {[%emt 0:04:04]} Kh7 {[%emt 0:10:00]} 31. Qd7 {[%emt 0:02:13]} Kh6 {[%emt 0:02:53]} 32. c6 {[%emt 0:14:17]} Qe1+ {[%emt 0:01:19]} 33. Kh2 {[%emt 0:00:01][%cal Od7f5]} Ne5 {[%emt 0:02:40]} 34. Qf5 {[%emt 0:02:42] [#] c7 is the strong threat.} Qg3+ {[%emt 0:02:36]} 35. Kh1 {[%emt 0:00:26] c7 would now be deadly.} Qe1+ {[%emt 0:01:46]} 36. Kh2 {[%emt 0:00:01] Black must now prevent c7.} Qg3+ {[%emt 0:00:05]} 37. Kh1 {[%emt 0:00:08] Threatens to win with c7.} Nxc6 {[%emt 0:00:40] aiming for ...Qe1+.} 38. Nxf6 {[%emt 0:01:50][%csl Gf6][%cal Rf5h5] [#]} Qe1+ {[%emt 0:02:01]} 39. Kh2 {[%emt 0:00:04][%cal Rf6g4]} Qg3+ {[%emt 0:00:04]} 40. Kh1 {[%emt 0:00:04][%csl Gf6][%cal Rf5h5]} gxf6 {[%emt 0:00:47]} 41. Qxf6+ {[%emt 0:30:05]} Qg6 {[%emt 0:30:09]} 42. Qxh4+ {[%emt 0:00:18]} Kg7 {[%emt 0:00:05]} 43. Qg4 {[%emt 0:04:58]} Qxg4 {[%emt 0:00:00] Weighted Error Value: White=0.03 (flawless) /Black=0.02 (flawless) .  Inaccurate:     	White=1     	---        OK:         	White=17    	Black=18     Best:        	White=4     	---} 1/2-1/2

[Event "Qatar Masters 2024"]
[Site "Doha"]
[Date "2024.12.03"]
[Round "1.22"]
[White "Idani, Pouya"]
[Black "Omonov, Asrorjon"]
[Result "1-0"]
[Annotator "TA"]
[ECO "B12"]
[WhiteElo "2603"]
[BlackElo "2360"]
[PlyCount "141"]
[EventDate "2024.11.24"]
[EventType "swiss"]
[EventCountry "QAT"]
[SourceTitle "playchess.com"]
[Source "ChessBase"]
[SourceQuality "1"]
[TimeControl "40/5400+30:1800+30"]

{[%evp 64,141,282,291,262,199,324,313,302,226,230,196,206,201,201,182,190,166,186,166,215,207,197,169,258,258,248,235,237,153,164,153,167,157,132,141,182,182,181,172,207,187,195,194,188,188,339,315,293,275,467,475,524,510,514,510,517,491,534,392,435,452,485,498,681,667,733,667,1094,1086,1245,1516,1447,1483,2979,2367,29986,29987,29987,29988]} 1. e4 {[%emt 0:00:03]} c6 {[%emt 0:00:16]} 2. d4 {[%emt 0:00:04]} d5 {[%emt 0:00:07]} 3. e5 {[%emt 0:00:04]} Bf5 {[%emt 0:00:07]} 4. Nf3 {[%emt 0:00:05]} e6 {[%emt 0:00:05]} 5. Be2 {[%emt 0:00:03]} Nd7 {[%emt 0:00:23]} 6. O-O {[%emt 0:00:08]} a5 {[%emt 0:00:06]} 7. Nc3 {[%emt 0:00:11]} a4 {[%emt 0:05:55]} 8. Bd2 {[%emt 0:00:17]} a3 {[%emt 0:05:58]} 9. b3 {[%emt 0:00:19]} Ne7 {[%emt 0:01:58]} 10. Na4 {[%emt 0:03:41]} Bg4 {[%emt 0:04:40]} 11. Nh4 {[%emt 0:18:09]} Bxe2 {[%emt 0:07:49]} 12. Qxe2 {[%emt 0:00:05]} b5 {[%emt 0:20:54]} 13. Nc3 {[%emt 0:00:11]} b4 {[%emt 0:01:19]} 14. Na4 {[%emt 0:02:32]} Nc8 {[%emt 0:01:05]} 15. Qg4 {[%emt 0:02:36]} Ncb6 {[%emt 0:02:03]} 16. Nxb6 {[%emt 0:04:05]} Qxb6 {[%emt 0:00:52]} 17. Nf3 {[%emt 0:03:37]} g6 {[%emt 0:16:48]} 18. Qf4 {[%emt 0:08:53]} Be7 {[%emt 0:03:05]} 19. h4 {[%emt 0:01:35]} h6 {[%emt 0:01:26]} 20. c3 {[%emt 0:02:53]} c5 {[%emt 0:07:58]} 21. Rac1 {[%emt 0:07:11]} bxc3 {[%emt 0:02:23]} 22. Bxc3 {[%emt 0:01:31]} Qd8 {[%emt 0:08:05]} 23. Qe3 {[%emt 0:04:41]} Rc8 {[%emt 0:00:44]} 24. dxc5 {[%emt 0:01:51]} Bxc5 {[%emt 0:02:23]} 25. Qd2 {[%emt 0:05:40]} Kf8 {[%emt 0:02:35]} 26. Ba5 {[%emt 0:00:44]} Qe8 {[%emt 0:00:37]} 27. Rc2 {[%emt 0:00:28]} Be7 {[%emt 0:01:05]} 28. Rxc8 {[%emt 0:01:30]} Qxc8 {[%emt 0:00:02]} 29. Rc1 {[%emt 0:00:07]} Qe8 {[%emt 0:01:05]} 30. Rc7 {[%emt 0:06:25]} Kg7 {[%emt 0:00:59]} 31. Qc1 {[%emt 0:03:11]} Bd8 {[%emt 0:01:36]} 32. Rc8 {[%emt 0:03:10]} Qe7 {[%emt 0:00:07]} 33. Bc7 $1 {[%emt 0:04:23]} (33. Bd2 $6 d4 34. Rc4 (34. Nxd4 Nxe5 35. Bc3 Qd7 $14) 34... d3 $18) 33... Bxc7 {[%emt 0:01:25]} 34. Rxc7 {[%emt 0:00:06]} Rd8 {[%emt 0:00:35]} (34... Rf8 $142 35. g3 Rg8) 35. Nd4 $18 {[%emt 0:03:05]} Qe8 {[%emt 0:00:45]} (35... Qxh4 36. Nc6 Rh8 37. Rxd7) 36. f4 {[%emt 0:00:30]} Nf8 {[%emt 0:00:31]} 37. g3 {[%emt 0:05:53]} Rd7 {[%emt 0:00:27]} 38. Rc8 {[%emt 0:00:43]} Rd8 {[%emt 0:00:09]} 39. Rc6 {[%emt 0:00:32]} Qe7 {[%emt 0:00:40]} 40. Qc5 {[%emt 0:00:39]} Qxc5 {[%emt 0:00:43]} 41. Rxc5 {[%emt 0:30:07]} Nd7 {[%emt 0:30:37]} (41... Rb8 {was called for.}) 42. Rc7 $1 $18 {[%emt 0:00:39]} Nf8 {[%emt 0:00:01]} 43. Nb5 {[%emt 0:03:33]} g5 {[%emt 0:00:53] [#]} (43... Rd7 {is a better defense.} 44. Rc8 f6) 44. h5 $1 $18 {[%emt 0:00:13]} (44. Nxa3 gxf4 45. gxf4 Ng6 $11) (44. fxg5 hxg5 45. h5 (45. Nxa3 Ng6 $11) (45. hxg5 Nh7 $11) 45... Kh6 $11) 44... gxf4 {[%emt 0:00:07]} 45. gxf4 {[%emt 0:00:19]} (45. Nxa3 Rb8 $17 (45... fxg3 46. Nb5 $11)) 45... Rd7 {[%emt 0:00:25]} 46. Rc2 {[%emt 0:05:00]} f6 {[%emt 0:00:00]} 47. Rg2+ {[%emt 0:00:00]} ({But not} 47. Nxa3 $6 Rb7 $16) 47... Kh8 {[%emt 0:00:00]} 48. Nxa3 {[%emt 0:00:00]} fxe5 {[%emt 0:00:00]} 49. fxe5 {[%emt 0:00:00]} Rc7 {[%emt 0:00:00]} 50. Nb5 {[%emt 0:00:00]} Rc1+ {[%emt 0:00:00] [#]} 51. Kf2 $1 {[%emt 0:00:00]} Nd7 {[%emt 0:00:00]} 52. Rg6 {[%emt 0:00:00]} Nxe5 {[%emt 0:00:00]} 53. Rxh6+ {[%emt 0:00:00]} ({Don't do} 53. Rxe6 $6 Nd3+ 54. Kf3 Rf1+ 55. Kg2 Rf2+ 56. Kg3 Rxa2 $16) 53... Kg7 {[%emt 0:00:00]} 54. Rxe6 {[%emt 0:00:00]} Ng4+ $2 {[%emt 0:00:00]} (54... Nd3+ 55. Kg3 Rg1+ 56. Kh2 Rg4) 55. Ke2 {[%emt 0:00:00]} Kf7 {[%emt 0:00:00]} 56. Nd4 {[%emt 0:00:00]} Rh1 $2 {[%emt 0:00:00]} (56... Nf6 {keeps fighting.} 57. Re5 Rh1) 57. a4 $18 {[%emt 0:00:00]} Rxh5 {[%emt 0:00:00]} 58. a5 {[%emt 0:00:00]} Rh2+ {[%emt 0:00:30]} 59. Kf3 {[%emt 0:00:00]} Nf6 {[%emt 0:01:58]} 60. Rb6 {[%emt 0:00:00]} Rh3+ {[%emt 0:01:36]} 61. Ke2 {[%emt 0:00:28]} Rh2+ {[%emt 0:00:12]} 62. Kd3 {[%emt 0:00:17]} Ra2 {[%emt 0:00:21]} 63. Rb7+ {[%emt 0:01:47]} Ke8 {[%emt 0:00:47]} 64. Nc6 {[%emt 0:01:20]} Ne4 {[%emt 0:01:47]} 65. b4 {[%emt 0:00:59]} Ra3+ {[%emt 0:02:57]} 66. Kd4 {[%emt 0:00:28]} Nc3 {[%emt 0:00:06]} 67. Ke5 {[%emt 0:00:33]} Ra1 {[%emt 0:00:51]} 68. b5 {[%emt 0:01:39]} Rb1 {[%emt 0:00:13]} 69. a6 {[%emt 0:01:43]} Nxb5 {[%emt 0:00:28]} 70. Rxb5 {[%emt 0:00:05]} ({Weaker is} 70. Kxd5 Ra1 $16) 70... Rxb5 {[%emt 0:00:11]} 71. a7 {[%emt 0:00:04]} 1-0

[Event "Qatar Masters 2024"]
[Site "Doha"]
[Date "2024.12.03"]
[Round "1.23"]
[White "Wafa, Hamed"]
[Black "Daneshvar, Bardiya"]
[Result "0-1"]
[Annotator "ChessBase"]
[ECO "B07"]
[WhiteElo "2384"]
[BlackElo "2600"]
[PlyCount "236"]
[EventDate "2024.11.24"]
[EventType "swiss"]
[EventCountry "QAT"]
[SourceTitle "playchess.com"]
[Source "ChessBase"]
[SourceQuality "1"]
[TimeControl "40/5400+30:1800+30"]

1. e4 {[%emt 0:00:02]} g6 {[%emt 0:00:12]} 2. d4 {[%emt 0:00:08]} Bg7 {[%emt 0:00:04]} 3. Nf3 {[%emt 0:00:48]} d6 {[%emt 0:00:07]} 4. c3 {[%emt 0:00:25]} Nf6 {[%emt 0:00:05]} 5. Bd3 {[%emt 0:00:08]} O-O {[%emt 0:00:04]} 6. O-O {[%emt 0:00:40]} Nbd7 {[%emt 0:00:11]} 7. Re1 {[%emt 0:05:15]} e5 {[%emt 0:00:25]} 8. h3 {[%emt 0:00:57]} Re8 {[%emt 0:00:10]} 9. Nbd2 {[%emt 0:06:57]} b6 {[%emt 0:00:05]} 10. d5 {[%emt 0:05:09]} Bb7 {[%emt 0:01:03]} 11. Bc2 {[%emt 0:01:09]} Bh6 {[%emt 0:02:32]} 12. c4 {[%emt 0:09:44]} a5 {[%emt 0:00:41]} 13. Nf1 {[%emt 0:06:28]} Bxc1 {[%emt 0:00:28]} 14. Rxc1 {[%emt 0:01:51]} Nc5 {[%emt 0:02:55]} 15. Qd2 {[%emt 0:02:14]} Nh5 {[%emt 0:02:03]} 16. Ng3 {[%emt 0:08:41]} Nf4 {[%emt 0:02:26]} 17. Ne2 {[%emt 0:00:37]} Nxe2+ {[%emt 0:00:29]} 18. Rxe2 {[%emt 0:00:24]} Bc8 {[%emt 0:00:48]} 19. b3 {[%emt 0:03:09]} f5 {[%emt 0:05:09]} 20. exf5 {[%emt 0:01:40]} Bxf5 {[%emt 0:01:16]} 21. Bxf5 {[%emt 0:05:06]} gxf5 {[%emt 0:00:53]} 22. Qh6 {[%emt 0:00:48]} Rf8 {[%emt 0:13:45]} 23. Ng5 {[%emt 0:17:40]} Qe7 {[%emt 0:02:33]} 24. f4 {[%emt 0:02:41]} Rf6 {[%emt 0:07:56]} 25. Qh4 {[%emt 0:02:30]} h6 {[%emt 0:17:17]} 26. Nf3 {[%emt 0:05:43]} e4 {[%emt 0:01:49]} 27. Nd4 {[%emt 0:01:02]} Qf7 {[%emt 0:01:45]} 28. Re3 {[%emt 0:01:56]} Rg6 {[%emt 0:04:19]} 29. Kh1 {[%emt 0:01:53]} Kh7 {[%emt 0:04:10]} 30. Rcc3 {[%emt 0:01:42]} Rag8 {[%emt 0:04:34]} 31. Rg3 {[%emt 0:03:15]} Nd3 {[%emt 0:03:37]} 32. Rxg6 {[%emt 0:00:09]} Qxg6 {[%emt 0:01:35]} 33. Rc2 {[%emt 0:00:10]} Nc5 {[%emt 0:03:25]} 34. Qe7+ {[%emt 0:01:29]} Rg7 {[%emt 0:00:36]} 35. Qh4 {[%emt 0:00:18]} Rf7 {[%emt 0:04:32]} 36. Re2 {[%emt 0:00:20]} Qg7 {[%emt 0:02:37]} 37. Qh5 {[%emt 0:00:15]} Qf6 {[%emt 0:00:57]} 38. Re3 {[%emt 0:00:41]} Qg6 {[%emt 0:01:17]} 39. Qxg6+ {[%emt 0:02:00]} Kxg6 {[%emt 0:00:01]} 40. a4 {[%emt 0:01:34]} Nd3 {[%emt 0:04:07]} 41. g3 {[%emt 0:30:42]} h5 {[%emt 0:32:41]} 42. h4 {[%emt 0:00:27]} Kf6 {[%emt 0:05:11]} 43. Kh2 {[%emt 0:00:00]} Nb4 {[%emt 0:00:00]} 44. Re2 {[%emt 0:00:00]} Rf8 {[%emt 0:00:00]} 45. Kg2 {[%emt 0:00:00]} Rg8 {[%emt 0:00:00]} 46. Rd2 {[%emt 0:00:00]} Nd3 {[%emt 0:00:00]} 47. Kh2 {[%emt 0:00:00]} Re8 {[%emt 0:00:00]} 48. Kg1 {[%emt 0:00:00]} Nc5 {[%emt 0:00:00]} 49. Rb2 {[%emt 0:00:00]} Rg8 {[%emt 0:00:00]} 50. Kh2 {[%emt 0:00:00]} e3 {[%emt 0:00:00]} 51. Ne2 {[%emt 0:00:00]} Ne4 {[%emt 0:00:00]} 52. Rc2 {[%emt 0:00:00]} Nd2 {[%emt 0:00:00]} 53. Rc3 {[%emt 0:00:00]} Re8 {[%emt 0:00:00]} 54. Kg2 {[%emt 0:00:00]} Re4 {[%emt 0:00:00]} 55. Rd3 {[%emt 0:00:00]} Kf7 {[%emt 0:00:00]} 56. Kg1 {[%emt 0:00:00]} Ke8 {[%emt 0:00:00]} 57. Kh1 {[%emt 0:00:00]} Kd7 {[%emt 0:00:00]} 58. Kg2 {[%emt 0:00:00]} Re8 {[%emt 0:02:20]} 59. Kg1 {[%emt 0:00:52]} Kc8 {[%emt 0:01:51]} 60. Kg2 {[%emt 0:00:26]} Kb7 {[%emt 0:01:32]} 61. Kg1 {[%emt 0:00:40]} Kb8 {[%emt 0:00:20]} 62. Kg2 {[%emt 0:00:20]} Kc8 {[%emt 0:00:10]} 63. Kg1 {[%emt 0:01:08]} Kd8 {[%emt 0:00:27]} 64. Kg2 {[%emt 0:00:09]} Kd7 {[%emt 0:00:24]} 65. Kg1 {[%emt 0:00:19]} Nf3+ {[%emt 0:00:18]} 66. Kf1 {[%emt 0:00:19]} Re7 {[%emt 0:01:19]} 67. Rc3 {[%emt 0:01:17]} c5 {[%emt 0:02:09]} 68. Rd3 {[%emt 0:04:49]} Re8 {[%emt 0:00:27]} 69. Rc3 {[%emt 0:01:01]} Nh2+ {[%emt 0:00:47]} 70. Kg2 {[%emt 0:00:43]} Ng4 {[%emt 0:00:01]} 71. Kf3 {[%emt 0:00:33]} Re4 {[%emt 0:01:15]} 72. Rd3 {[%emt 0:00:23]} b5 {[%emt 0:00:47]} 73. cxb5 {[%emt 0:03:04]} c4 {[%emt 0:00:09]} 74. bxc4 {[%emt 0:00:16]} Rxc4 {[%emt 0:00:01]} 75. Nd4 {[%emt 0:00:37]} Rxa4 {[%emt 0:00:24]} 76. Nxf5 {[%emt 0:00:28]} e2 {[%emt 0:01:48]} 77. Kxe2 {[%emt 0:00:24]} Rb4 {[%emt 0:00:01]} 78. Ne3 {[%emt 0:02:09]} Nf6 {[%emt 0:00:15]} 79. Kf3 {[%emt 0:00:31]} a4 {[%emt 0:00:56]} 80. Ra3 {[%emt 0:00:17]} Kc7 {[%emt 0:01:11]} 81. Rc3+ {[%emt 0:00:27]} Kd8 {[%emt 0:00:44]} 82. Rc6 {[%emt 0:00:27]} Kd7 {[%emt 0:00:31]} 83. Ra6 {[%emt 0:00:12]} Rb3 {[%emt 0:00:18]} 84. Ra7+ {[%emt 0:01:01]} Kd8 {[%emt 0:00:35]} 85. b6 {[%emt 0:00:34]} a3 {[%emt 0:00:38]} 86. Ra8+ {[%emt 0:00:12]} Ke7 {[%emt 0:00:26]} 87. b7 {[%emt 0:00:07]} Nd7 {[%emt 0:00:10]} 88. Ke2 {[%emt 0:01:07]} Rb2+ {[%emt 0:00:11]} 89. Kd1 {[%emt 0:00:30]} a2 {[%emt 0:00:21]} 90. Nc2 {[%emt 0:00:02]} Kf6 {[%emt 0:01:03]} 91. Kc1 {[%emt 0:00:27]} Rxb7 {[%emt 0:00:13]} 92. Rxa2 {[%emt 0:00:02]} Nc5 {[%emt 0:00:15]} 93. Ra3 {[%emt 0:01:26]} Kf5 {[%emt 0:00:19]} 94. Re3 {[%emt 0:00:14]} Kg4 {[%emt 0:00:19]} 95. Nd4 {[%emt 0:00:50]} Rb4 {[%emt 0:00:10]} 96. Ne2 {[%emt 0:00:15]} Ne4 {[%emt 0:00:23]} 97. Kc2 {[%emt 0:00:16]} Nf2 {[%emt 0:01:00]} 98. Re6 {[%emt 0:00:25]} Ne4 {[%emt 0:00:27]} 99. Rg6+ {[%emt 0:01:15]} Kf3 {[%emt 0:00:47]} 100. Nc1 {[%emt 0:00:30]} Rc4+ {[%emt 0:00:33]} 101. Kb2 {[%emt 0:00:11]} Rd4 {[%emt 0:00:18]} 102. Kc2 {[%emt 0:00:41]} Rd2+ {[%emt 0:00:29]} 103. Kb3 {[%emt 0:00:30]} Rxd5 {[%emt 0:00:06]} 104. Kc2 {[%emt 0:00:29]} Rd2+ {[%emt 0:00:33]} 105. Kb3 {[%emt 0:00:07]} Nxg3 {[%emt 0:00:16]} 106. Rg5 {[%emt 0:00:56]} Kxf4 {[%emt 0:00:39]} 107. Na2 {[%emt 0:00:18]} Rh2 {[%emt 0:00:27]} 108. Nc3 {[%emt 0:00:39]} Rxh4 {[%emt 0:00:24]} 109. Rd5 {[%emt 0:00:12]} Nf5 {[%emt 0:00:57]} 110. Ne2+ {[%emt 0:00:14]} Kg5 {[%emt 0:01:29]} 111. Kc3 {[%emt 0:00:20]} Rg4 {[%emt 0:00:14]} 112. Rd1 {[%emt 0:00:13]} h4 {[%emt 0:00:12]} 113. Ng1 {[%emt 0:00:10]} Rg3+ {[%emt 0:00:20]} 114. Kd2 {[%emt 0:00:01]} h3 {[%emt 0:00:49]} 115. Ke2 {[%emt 0:00:08]} h2 {[%emt 0:00:50]} 116. Nf3+ {[%emt 0:00:08]} Kf4 {[%emt 0:00:06]} 117. Rf1 {[%emt 0:00:47]} Rxf3 {[%emt 0:00:22]} 118. Rxf3+ {[%emt 0:00:11]} Kg4 {[%emt 0:00:01]} 0-1

[Event "Qatar Masters 2024"]
[Site "Doha"]
[Date "2024.12.03"]
[Round "1.24"]
[White "Pranesh M"]
[Black "Navrotescu, Andreea"]
[Result "1/2-1/2"]
[Annotator "RC"]
[ECO "B88"]
[WhiteElo "2580"]
[BlackElo "2338"]
[PlyCount "101"]
[EventDate "2024.11.24"]
[EventType "swiss"]
[EventCountry "QAT"]
[SourceTitle "playchess.com"]
[Source "ChessBase"]
[SourceQuality "1"]
[TimeControl "40/5400+30:1800+30"]

1. e4 {[%emt 0:00:05]} c5 {[%emt 0:00:04]} 2. Nf3 {[%emt 0:00:09]} d6 {[%emt 0:00:06]} 3. d4 {[%emt 0:00:07]} cxd4 {[%emt 0:00:05]} 4. Nxd4 {[%emt 0:00:06]} Nf6 {[%emt 0:00:07]} 5. Nc3 {[%emt 0:00:06]} Nc6 {[%emt 0:00:05]} 6. Bc4 {[%emt 0:00:08]} e6 {[%emt 0:00:09]} 7. Be3 {[%emt 0:00:07]} a6 {[%emt 0:00:10]} 8. Bb3 {[%emt 0:00:16]} Bd7 {[%emt 0:01:20]} 9. f4 {[%emt 0:01:01]} b5 {[%emt 0:06:50]} 10. Qf3 {[%emt 0:05:42]} Nxd4 {[%emt 0:05:02]} 11. Bxd4 {[%emt 0:00:20]} Bc6 {[%emt 0:02:45]} 12. O-O-O {[%emt 0:02:20]} b4 {[%emt 0:07:49]} 13. Bxf6 {[%emt 0:10:44]} Qxf6 {[%emt 0:07:24]} 14. Ba4 {[%emt 0:00:41]} Bxa4 {[%emt 0:00:39]} 15. Nxa4 {[%emt 0:00:42]} Qd8 {[%emt 0:06:15]} 16. f5 {[%emt 0:03:08]} Qa5 {[%emt 0:10:46]} 17. e5 {[%emt 0:16:08]} d5 {[%emt 0:06:17]} 18. fxe6 {[%emt 0:01:37]} fxe6 {[%emt 0:00:19]} 19. Qg4 {[%emt 0:01:53]} Qxa4 {[%emt 0:04:14]} 20. Qxe6+ {[%emt 0:00:07]} Be7 {[%emt 0:00:10]} 21. Rhf1 {[%emt 0:03:17]} Rd8 {[%emt 0:11:32]} 22. Qf7+ {[%emt 0:01:57]} Kd7 {[%emt 0:00:02]} 23. Rxd5+ {[%emt 0:01:04]} Kc8 {[%emt 0:00:43]} 24. Qe6+ {[%emt 0:00:41]} Kb8 {[%emt 0:02:04]} 25. Qb6+ {[%emt 0:00:19]} Kc8 {[%emt 0:02:38]} 26. Ra5 {[%emt 0:01:04]} Qd7 {[%emt 0:07:43]} 27. Qxa6+ {[%emt 0:00:27]} Kc7 {[%emt 0:11:14]} 28. Qa7+ {[%emt 0:01:03]} Kc8 {[%emt 0:00:02]} 29. Qa8+ {[%emt 0:00:40]} Kc7 {[%emt 0:00:02]} 30. Ra7+ {[%emt 0:06:32]} Kb6 {[%emt 0:00:02]} 31. Rxd7 {[%emt 0:02:00]} Bg5+ {[%emt 0:00:38]} 32. Kb1 {[%emt 0:00:03]} Rxa8 {[%emt 0:00:07]} 33. Rxg7 {[%emt 0:00:24]} h6 {[%emt 0:04:27]} 34. Rff7 {[%emt 0:05:05]} Rhf8 {[%emt 0:01:19]} 35. Rb7+ {[%emt 0:01:18]} Ka6 {[%emt 0:02:15]} 36. a3 {[%emt 0:00:35]} bxa3 {[%emt 0:00:50]} 37. Rb3 {[%emt 0:02:02]} axb2 {[%emt 0:01:07]} 38. Rgb7 {[%emt 0:00:32]} Rf4 {[%emt 0:01:36]} 39. R7b6+ {[%emt 0:01:06]} Ka5 {[%emt 0:00:00]} 40. Kxb2 {[%emt 0:00:24]} Re8 {[%emt 0:00:54]} 41. R3b5+ {[%emt 0:35:11]} Ka4 {[%emt 0:01:47]} 42. Rb3 {[%emt 0:00:00]} Ka5 {[%emt 0:00:02]} 43. R3b5+ {[%emt 0:00:00]} Ka4 {[%emt 0:00:08]} 44. g3 {[%emt 0:00:00]} Re4 {[%emt 0:03:56]} 45. Rb3 {[%emt 0:00:00]} Ka5 {[%emt 0:00:10]} 46. Rb7 {[%emt 0:00:00]} Ka6 {[%emt 0:00:29]} 47. R3b6+ {[%emt 0:00:00]} Ka5 {[%emt 0:00:02]} 48. Rb5+ {[%emt 0:00:00]} Ka6 {[%emt 0:02:07]} 49. R5b6+ {[%emt 0:00:00]} Ka5 {[%emt 0:00:01]} 50. Rb5+ {[%emt 0:00:00]} Ka6 {[%emt 0:00:12]} 51. R5b6+ {[%emt 0:00:00]} 1/2-1/2